[Event "44th Chess Olympiad Women 2022"]
[Site "Chennai"]
[Date "2022.08.09"]
[Round "11.37"]
[White "Cordero, Daniela"]
[Black "Antonova, Nadezhda"]
[Result "0-1"]
[ECO "E63"]
[WhiteElo "2005"]
[BlackElo "1832"]
[Annotator "TA"]
[PlyCount "260"]
[EventDate "2022.07.29"]
[EventType "team-tourn"]
[EventCountry "IND"]
[SourceTitle "playchess.com"]
[Source "ChessBase"]
[SourceQuality "1"]
[WhiteTeam "Bolivia"]
[BlackTeam "Tajikistan"]
[WhiteTeamCountry "BOL"]
[BlackTeamCountry "TJK"]
[TimeControl "40/5400+30:1800+30"]

{[%evp 17,260,17,21,34,18,20,21,0,0,-13,0,-30,-25,-29,-26,-27,-23,-29,-21,-51,-61,-43,-49,-59,0,-43,27,-9,-26,-36,-43,-69,-25,-25,-13,-98,-14,-84,-65,-80,-79,-108,-58,-67,54,12,34,2,0,-20,-27,-52,-14,-21,-29,-177,-208,-179,-170,-704,-755,-927,-474,-546,-489,-453,0,0,0,0,0,0,31,30,31,0,0,-296,0,0,0,0,31,0,0,0,0,0,0,-1088,-1122,-861,-935,-2702,-2638,-6293,-1307,-10563,-9489,-5093,-5089,-29975,-29976,-29975,-29976,-29976,-29977,-29979,-29978,-29979,-29979,-29979,-29980,-29978,-29979,-29978,-29980,-29981,-29980,-29996,-29979,-29980,-29981,-29981,-29982,-29987,-29987,-29987,-29983,-29983,-29983,-29984,-29985,-29985,-29984,-29984,-29985,-29985,-29986,-29986,-29987,-29987,-29987,-29989,-29990,-29990,-29991,-29991,-29992,-29992,-29991,-29993,-29994,-29994,-29990,-29995,-29991,-29991,-29992,-29992,0,-29990,-29989,-29989,-29975,-29976,-29974,-29974,-29977,-29978,-29977,-29977,-29972,-29970,-29970,-29978,-29978,-29981,-29982,-29982,-29979,-29979,-29966,-29968,-29969,-29969,-29971,-29973,-29971,-29975,-29977,-29977,-29980,-29980,-29981,-29981,-29982,-29983,-29980,-29982,-29982,-29987,-29988,-29992,-29988,-29992,-29992,-29993,-29986,-29990,-29991,-29993,-29986,-29992,-29983,-29988,-29986,-29986,-29987,-29986,-29987,-29986,-29987,-29987,-29986,-29986,-29986,-29987,-29987,-29987,-29985,-29981,-29976,-29990,-29989,-29996,-29993,-29996,-29994,-29997,-29991,-29991,-29989,-29996,-29997]} 1. d4 {[%emt 0:00:02]} Nf6 {[%emt 0:00:06]} 2. Nf3 {[%emt 0:00:07]} g6 {[%emt 0:00:11]} 3. c4 {[%emt 0:00:06]} Bg7 {[%emt 0:00:09]} 4. g3 {[%emt 0:00:15]} O-O {[%emt 0:00:23]} 5. Bg2 {[%emt 0:00:04]} d6 {[%emt 0:00:07]} 6. O-O {[%emt 0:00:14]} Nc6 {[%emt 0:00:48]} 7. Nc3 {[%emt 0:00:34]} a6 {[%emt 0:00:17][%cal Ba7a6,Ba6b5,Bb5a4][%mdl 32]} 8. Re1 {[%emt 0:00:45] 8.Bf4 is the recent fashion.} Rb8 {[%emt 0:05:16]} 9. Rb1 {[%emt 0:01:40]} b5 {[%emt 0:03:35]} 10. cxb5 {[%emt 0:00:40] E63: King's Indian: Fianchetto: Panno Variation with 7...a6.} axb5 {[%emt 0:04:22]} 11. b4 {[%emt 0:00:11]} e5 {[%emt 0:14:02]} 12. d5 {[%emt 0:09:48] The position is equal.} Ne7 {[%emt 0:04:55][%cal Bc6e7,Be7c8,Bc8b6][%mdl 32]} 13. e4 {[%emt 0:04:41]} Bd7 {[%emt 0:01:27]} 14. Bf1 {[%emt 0:04:56]} h6 {[%emt 0:11:24] [#]} 15. a4 $146 {[%emt 0:07:30]} ({Predecessor:} 15. Qc2 c6 16. Qd1 cxd5 17. exd5 Qb6 18. Bg2 Rfc8 19. Bb2 Nf5 20. Nd2 Nd4 21. Nb3 {0-1 (66) Suarez,J (2173)-Weinstein,N (2450) Chess.com INT 2018}) 15... bxa4 {[%emt 0:00:00]} 16. b5 {[%emt 0:00:20]} Nh7 {[%emt 0:00:00]} 17. Ba3 {[%emt 0:13:48]} Nc8 {[%emt 0:00:43]} 18. Nd2 {[%emt 0:15:19]} f5 {[%emt 0:03:04]} 19. exf5 {[%emt 0:11:19]} gxf5 {[%emt 0:00:21]} 20. Nxa4 {[%emt 0:01:54][%cal Ob5b6]} Kh8 {[%emt 0:08:10]} (20... Qe8 $15) 21. Qc2 {[%emt 0:03:15][%cal Ob5b6]} (21. b6 $5) 21... Nf6 {[%emt 0:07:42]} (21... Rb7 $15) 22. Nc3 {[%emt 0:01:45]} (22. b6 $5 cxb6 23. Nc3 $11) 22... Nb6 {[%emt 0:01:50]} 23. Qb3 {[%emt 0:07:27]} Ng4 {[%emt 0:01:18]} 24. Nc4 {[%emt 0:01:33]} f4 {[%emt 0:01:17][%cal Og4f2]} 25. Ne4 {[%emt 0:03:18]} fxg3 {[%emt 0:03:12]} (25... Nxd5 26. Ncxd6 $1 fxg3 27. hxg3 $1 cxd6 28. Qxd5 $16) 26. hxg3 {[%emt 0:00:53]} (26. fxg3 $11 Nxc4 27. Qxc4) 26... Qe8 {[%emt 0:01:32]} (26... Nxd5 27. Ncxd6 $1 Be6 28. Nc4 $16) ({Black should play} 26... Nxc4 $17 27. Bxc4 Qe8) 27. f3 {[%emt 0:01:26]} (27. Ne3 $1 $11) 27... Nf6 {[%emt 0:04:17]} (27... Nxc4 {keeps more tension.} 28. fxg4 Nxa3 29. Qxa3 Bxg4 30. b6 cxb6 31. Qxd6 Qf7) 28. Ncxd6 {[%emt 0:05:55]} cxd6 {[%emt 0:00:25]} 29. Bxd6 {[%emt 0:00:03] [#]} Nxe4 {[%emt 0:01:50]} (29... Nbxd5 $6 30. Rbd1 $11) ({Better is} 29... Qg6 $1 $17 {Strongly threatening ...Nxe4.} 30. Bxb8 (30. Bxf8 Bxf8 31. Qb2 Bf5 $17) 30... Rxb8) 30. fxe4 $15 {[%emt 0:00:09] [#]} Rg8 {[%emt 0:04:53]} 31. Bxb8 $14 {[%emt 0:00:07]} Qxb8 {[%emt 0:00:01]} (31... Bf8 $5 {[%cal Rf8c5]} 32. Qe3 Qxb8 $14) 32. Qe3 {[%emt 0:01:45]} Bf8 {[%emt 0:00:20][%cal Bg7f8,Bf8e7,Be7g5,Bg5f4,Bf4g3][%mdl 32]} 33. Kg2 {[%emt 0:02:06]} Qd6 {[%emt 0:01:36][%mdl 1024] Black has compensation.} 34. Rec1 {[%emt 0:02:25]} Qg6 {[%emt 0:00:25]} (34... h5 $5 {[%cal Rh5h4]} 35. Qf3 Qh6 $15) 35. Be2 {[%emt 0:00:27]} Be7 {[%emt 0:00:58]} 36. Rh1 {[%emt 0:00:44] [#]} (36. Rc6 $1 $11 Bxc6 37. dxc6) 36... Bg5 $1 $19 {[%emt 0:00:36]} 37. Qf3 {[%emt 0:00:49]} Bf4 $1 {[%emt 0:00:59] This bishop pair is nice.} 38. Kf1 $2 {[%emt 0:00:25]} (38. Rbg1) 38... Bxg3 {[%emt 0:01:40]} 39. Rb3 {[%emt 0:00:19]} Bf4 {[%emt 0:01:41] aiming for ...Na4.} 40. Rc3 {[%emt 0:00:47] [#]} Nxd5 $1 {[%emt 0:02:52][%mdl 512]} 41. exd5 {[%emt 0:08:44]} Qb1+ {[%emt 0:28:33]} (41... Bd2 $19 {White must now prevent ...e4.} 42. Rc4 e4 43. Rxe4 Qg7) 42. Kf2 $11 {[%emt 0:02:07]} Qb4 {[%emt 0:00:42] Threatens to win with ...Rf8.} 43. Rc4 $1 {[%emt 0:14:30]} Qd6 {[%emt 0:00:47] Chess con chili.} 44. Rxf4 {[%emt 0:03:25] Threatening mate with Rf6.} exf4 {[%emt 0:00:00]} 45. Qc3+ {[%emt 0:00:07]} Rg7 {[%emt 0:00:01]} 46. Ke1 {[%emt 0:02:50]} (46. Ra1 $5 {[%cal Ra1a8]} Qg6 47. Ra8+ (47. Ke1 f3 $11) 47... Kh7 48. Bd3 $16) 46... Kg8 {[%emt 0:02:20]} 47. Qd4 $2 {[%emt 0:01:10][%mdl 8192]} (47. Rf1 $1 $11 {and White stays safe.}) 47... Qg6 $2 {[%emt 0:00:32]} (47... f3 $1 $19 48. Bd3 f2+ 49. Kd2 Rg4 50. Qxf2 Qb4+ 51. Kd1 Qb3+ 52. Qc2 Qxd5) 48. Rf1 {[%emt 0:00:41] Kd2 is the strong threat.} Qb1+ {[%emt 0:00:14]} 49. Kf2 {[%emt 0:00:14]} Qg6 {[%emt 0:03:17][%csl Gf4,Gg7][%cal Rg6g3]} 50. Ke1 {[%emt 0:00:49]} (50. Qxg7+ $5 Kxg7 51. Rg1 Qxg1+ 52. Kxg1 $14) 50... Qb1+ {[%emt 0:01:32]} 51. Kf2 {[%emt 0:00:07]} Qb3 {[%emt 0:02:47][%csl Gf4,Gg7][%cal Rb3g3]} 52. Qd3 {[%emt 0:00:29]} (52. Rg1 $2 Qe3+ 53. Qxe3 fxe3+ 54. Kf3 Rxg1 $19) 52... Qb4 {[%emt 0:01:32][%cal Of4f3] And now ...f3! would win.} 53. Rd1 $2 {[%emt 0:01:10][%mdl 8192] White is on the road to losing.} (53. Qc4 $11 Qd2 54. d6+ Kh8 55. Qd3) 53... Qe7 {[%emt 0:01:40]} 54. Rh1 {[%emt 0:00:40] Against Qh4+} Qc5+ {[%emt 0:00:46]} 55. Kf1 {[%emt 0:00:24]} f3 {[%emt 0:02:37]} (55... Bxb5 56. Qxb5 Qc1+ 57. Kf2 Qe3+ 58. Kf1 (58. Ke1 Qc1+ 59. Kf2 Qe3+ 60. Kf1 Qc1+ 61. Kf2 $11) 58... Qc1+ 59. Kf2 Qe3+ 60. Kf1 (60. Ke1 Qc1+ 61. Kf2 $11) 60... Qc1+ $11) 56. Qxf3 {[%emt 0:00:37]} Rf7 {[%emt 0:00:13]} (56... Bxb5 $142 57. Ke1 Qb4+ 58. Kf2 Rf7 59. Rg1+ Kf8) 57. Rg1+ {[%emt 0:00:29]} Kf8 $1 {[%emt 0:00:14]} 58. Rg3 {[%emt 0:00:29] Against Bh3+} Bxb5 {[%emt 0:00:42]} 59. Bxb5 {[%emt 0:00:21]} Qxb5+ {[%emt 0:00:05]} 60. Kg2 {[%emt 0:00:04]} Rxf3 {[%emt 0:00:15]} 61. Rxf3+ {[%emt 0:00:02] KQ-KR} Ke7 {[%emt 0:00:00]} 62. Rf5 {[%emt 0:01:00]} Qb1 {[%emt 0:01:48]} 63. Rf4 {[%emt 0:00:48]} Qd3 {[%emt 0:00:30]} 64. Kf2 {[%emt 0:00:36]} Qxd5 {[%emt 0:00:17]} 65. Kg3 {[%emt 0:00:08]} Qg5+ {[%emt 0:01:02]} 66. Rg4 {[%emt 0:00:12]} Qe3+ {[%emt 0:00:55]} 67. Kh4 {[%emt 0:00:37]} Qf2+ {[%emt 0:00:29]} 68. Kh5 {[%emt 0:00:33]} Qf5+ {[%emt 0:00:56]} 69. Kh4 {[%emt 0:00:18]} Kf6 {[%emt 0:00:24]} 70. Kg3 {[%emt 0:00:15]} Ke5 {[%emt 0:00:22]} 71. Kh4 {[%emt 0:00:22]} Qf3 {[%emt 0:00:46]} 72. Rg3 {[%emt 0:00:55]} Qf4+ {[%emt 0:00:38]} 73. Kh3 {[%emt 0:00:08]} h5 {[%emt 0:00:35]} 74. Rg2 {[%emt 0:00:13]} Qf3+ {[%emt 0:00:20]} 75. Kh2 {[%emt 0:00:18]} Ke4 {[%emt 0:00:47]} 76. Rg3 {[%emt 0:00:27]} Qf2+ {[%emt 0:00:34]} 77. Kh3 {[%emt 0:00:32]} Kf4 {[%emt 0:00:15][%csl Gf4][%cal Rf2g3]} 78. Rg2 {[%emt 0:00:47]} Qf1 {[%emt 0:00:18]} 79. Kh2 {[%emt 0:00:19]} Qf3 {[%emt 0:00:44]} 80. Rg1 {[%emt 0:00:13]} Qf2+ {[%emt 0:00:19]} 81. Rg2 {[%emt 0:00:18]} Qh4+ {[%emt 0:00:08]} 82. Kg1 {[%emt 0:00:03]} Kf3 {[%emt 0:00:22]} 83. Rg8 {[%emt 0:01:49]} Qd4+ {[%emt 0:00:36]} 84. Kh2 {[%emt 0:00:18]} Qe5+ {[%emt 0:01:13]} 85. Kh1 {[%emt 0:00:08]} Qd5 {[%emt 0:00:38]} 86. Rg6 {[%emt 0:01:24]} h4 {[%emt 0:00:27]} 87. Kh2 {[%emt 0:00:34]} Qe5+ {[%emt 0:00:12]} 88. Kh1 {[%emt 0:00:09]} Qd5 {[%emt 0:00:39]} 89. Kh2 {[%emt 0:00:25]} Qd2+ {[%emt 0:00:15] Black mates.} 90. Kh3 {[%emt 0:00:21]} Qd7+ {[%emt 0:00:56]} 91. Kxh4 {[%emt 0:00:52]} Qe7+ {[%emt 0:00:27]} 92. Kh5 {[%emt 0:00:10]} Qe5+ {[%emt 0:00:29]} 93. Rg5 {[%emt 0:01:00]} Qh8+ {[%emt 0:00:22]} 94. Kg6 {[%emt 0:00:04]} Kf4 {[%emt 0:00:27]} 95. Rf5+ {[%emt 0:00:13]} Ke4 {[%emt 0:00:02]} 96. Rg5 {[%emt 0:01:54]} Qg8+ {[%emt 0:00:34]} 97. Kf6 {[%emt 0:00:32]} Qd8+ {[%emt 0:00:23]} 98. Kg6 {[%emt 0:00:04]} Qd6+ {[%emt 0:00:24]} 99. Kh5 {[%emt 0:00:29]} Qf6 {[%emt 0:00:30]} 100. Rg4+ {[%emt 0:00:14]} Kf3 {[%emt 0:01:06]} ({And not} 100... Kf5 101. Rf4+ Kxf4 $11) 101. Rg3+ {[%emt 0:00:21]} Kf2 {[%emt 0:00:38]} 102. Rg6 {[%emt 0:00:53]} Qf5+ {[%emt 0:00:22]} 103. Kh6 {[%emt 0:00:47]} Kf3 {[%emt 0:00:24]} 104. Kg7 {[%emt 0:00:21]} Qd7+ {[%emt 0:00:16]} 105. Kh6 {[%emt 0:00:29]} Kf4 {[%emt 0:00:20]} 106. Rf6+ {[%emt 0:00:32]} Ke5 {[%emt 0:00:10]} 107. Rg6 {[%emt 0:00:09]} Qe7 {[%emt 0:00:30]} 108. Rg5+ {[%emt 0:00:27]} Kf4 {[%emt 0:00:13]} 109. Rg6 {[%emt 0:00:13]} Kf5 {[%emt 0:00:18]} 110. Ra6 {[%emt 0:01:40]} Qe3+ {[%emt 0:01:52]} 111. Kg7 {[%emt 0:00:26]} Qd4+ {[%emt 0:00:28]} 112. Kh7 {[%emt 0:00:27]} Qh4+ {[%emt 0:00:44]} 113. Kg7 {[%emt 0:00:20]} Qg3+ {[%emt 0:00:13]} 114. Kh7 {[%emt 0:00:21]} Qh2+ {[%emt 0:00:42]} 115. Kg7 {[%emt 0:00:54]} Qg1+ {[%emt 0:00:37]} 116. Kh7 {[%emt 0:00:36]} Qh1+ {[%emt 0:00:14]} 117. Rh6 {[%emt 0:00:27]} Qb7+ {[%emt 0:00:10]} 118. Kg8 {[%emt 0:00:29]} Kg5 {[%emt 0:00:37]} 119. Rh7 {[%emt 0:00:32]} Qd5+ {[%emt 0:00:14]} 120. Kg7 {[%emt 0:00:28]} Qd7+ {[%emt 0:00:16]} 121. Kg8 {[%emt 0:00:05]} Qe8+ {[%emt 0:00:58]} 122. Kg7 {[%emt 0:00:05]} Qg6+ {[%emt 0:00:51]} 123. Kh8 {[%emt 0:00:04]} Qf6+ {[%emt 0:00:22]} 124. Kg8 {[%emt 0:00:14]} Qd8+ {[%emt 0:00:26]} ({Stronger than} 124... Kg6 125. Rh6+ Kxh6 $11) 125. Kg7 {[%emt 0:00:07]} Qe8 {[%emt 0:00:51]} 126. Rh8 {[%emt 0:00:57]} Qe5+ {[%emt 0:00:27]} 127. Kh7 {[%emt 0:00:34]} Qe7+ {[%emt 0:00:30]} 128. Kg8 {[%emt 0:00:05]} Qe6+ {[%emt 0:00:34]} 129. Kf8 {[%emt 0:00:31]} Qd7 {[%emt 0:00:24]} 130. Kg8 {[%emt 0:02:09]} Kg6 {[%emt 0:00:26] Weighted Error Value: White=0.78/Black=0.48} 0-1

[Event "44th Chess Olympiad Women 2022"]
[Site "Chennai"]
[Date "2022.08.09"]
[Round "11.37"]
[White "Molina, Jessica"]
[Black "Saidova, Rukhshona"]
[Result "1/2-1/2"]
[ECO "A03"]
[WhiteElo "1889"]
[BlackElo "1624"]
[Annotator "NA RC COMBH"]
[PlyCount "113"]
[EventDate "2022.07.29"]
[EventType "team-tourn"]
[EventCountry "IND"]
[SourceTitle "playchess.com"]
[Source "ChessBase"]
[SourceQuality "1"]
[WhiteTeam "Bolivia"]
[BlackTeam "Tajikistan"]
[WhiteTeamCountry "BOL"]
[BlackTeamCountry "TJK"]
[TimeControl "40/5400+30:1800+30"]

1. f4 {[%emt 0:00:04]} d5 {[%emt 0:00:22]} 2. Nf3 {[%emt 0:00:12]} c5 {[%emt 0:00:32]} 3. b3 {[%emt 0:00:25]} Bg4 {[%emt 0:00:59]} 4. e3 {[%emt 0:00:21]} Nf6 {[%emt 0:01:03]} 5. Bb2 {[%emt 0:00:34]} e6 {[%emt 0:00:35]} 6. Be2 {[%emt 0:00:38]} Nc6 {[%emt 0:01:41]} 7. d3 {[%emt 0:05:43]} Bd6 {[%emt 0:01:21]} 8. O-O {[%emt 0:04:43]} O-O {[%emt 0:02:55]} 9. Nbd2 {[%emt 0:01:47]} Re8 {[%emt 0:02:28]} 10. Ne5 {[%emt 0:01:56]} Bxe2 {[%emt 0:00:33]} 11. Qxe2 {[%emt 0:00:13]} Nd7 {[%emt 0:00:53]} 12. Ndf3 {[%emt 0:05:09]} f6 {[%emt 0:01:23]} 13. Nxc6 {[%emt 0:00:43]} bxc6 {[%emt 0:00:17]} 14. c4 {[%emt 0:00:45]} e5 {[%emt 0:01:38]} 15. fxe5 {[%emt 0:03:57]} Nxe5 {[%emt 0:00:44]} 16. Nh4 {[%emt 0:07:34]} g6 {[%emt 0:05:15]} 17. Rad1 {[%emt 0:04:24]} Bf8 {[%emt 0:03:55]} 18. Rfe1 {[%emt 0:08:52]} Bg7 {[%emt 0:02:26]} 19. Nf3 {[%emt 0:05:35]} Ng4 {[%emt 0:04:09]} 20. e4 {[%emt 0:04:38]} d4 {[%emt 0:02:21]} 21. Nxd4 {[%emt 0:03:10]} Nxh2 {[%emt 0:08:07]} 22. Nxc6 {[%emt 0:06:24]} Qc7 {[%emt 0:01:58]} 23. e5 {[%emt 0:08:28]} Qxc6 {[%emt 0:01:55]} 24. Kxh2 {[%emt 0:00:09]} fxe5 {[%emt 0:00:46]} 25. Qe4 {[%emt 0:02:00]} Qd6 {[%emt 0:06:38]} 26. g3 {[%emt 0:05:58]} a5 {[%emt 0:03:26]} 27. Re2 {[%emt 0:06:32]} a4 {[%emt 0:03:14]} 28. Rde1 {[%emt 0:03:14]} axb3 {[%emt 0:01:39]} 29. axb3 {[%emt 0:00:45]} Rab8 {[%emt 0:02:16]} 30. Qd5+ {[%emt 0:06:47]} Qxd5 {[%emt 0:01:17]} 31. cxd5 {[%emt 0:00:06]} Rxb3 {[%emt 0:00:15]} 32. Bxe5 {[%emt 0:01:00]} Bxe5 {[%emt 0:00:59]} 33. Rxe5 {[%emt 0:00:26]} Rxe5 {[%emt 0:00:17]} 34. Rxe5 {[%emt 0:00:04]} Rxd3 {[%emt 0:00:07]} 35. d6 {[%emt 0:00:31]} c4 {[%emt 0:02:05]} 36. Rc5 {[%emt 0:00:32]} Rxd6 {[%emt 0:01:15]} 37. Rxc4 {[%emt 0:00:06]} Rd7 {[%emt 0:00:07]} 38. Rc6 {[%emt 0:01:10]} Kg7 {[%emt 0:00:12]} 39. Ra6 {[%emt 0:00:23]} Rf7 {[%emt 0:00:42]} 40. Rb6 {[%emt 0:00:38]} h5 {[%emt 0:00:45]} 41. Ra6 {[%emt 0:30:38]} g5 {[%emt 0:30:13]} 42. Kg2 {[%emt 0:01:09]} Rf6 {[%emt 0:00:18]} 43. Ra5 {[%emt 0:00:17]} Kg6 {[%emt 0:00:16]} 44. Rb5 {[%emt 0:01:06]} g4 {[%emt 0:00:27]} 45. Ra5 {[%emt 0:01:04]} Rb6 {[%emt 0:00:40]} 46. Rc5 {[%emt 0:00:35]} Rb2+ {[%emt 0:00:08]} 47. Kg1 {[%emt 0:00:28]} Rb3 {[%emt 0:00:20]} 48. Kg2 {[%emt 0:00:23]} Rf3 {[%emt 0:00:13]} 49. Ra5 {[%emt 0:01:54]} Rf5 {[%emt 0:04:59]} 50. Ra6+ {[%emt 0:00:32]} Kg5 {[%emt 0:00:15]} 51. Rb6 {[%emt 0:00:00]} h4 {[%emt 0:00:00]} 52. gxh4+ {[%emt 0:00:00]} Kxh4 {[%emt 0:00:00]} 53. Rh6+ {[%emt 0:00:00]} Kg5 {[%emt 0:00:00]} 54. Ra6 {[%emt 0:00:00]} Rc5 {[%emt 0:00:00]} 55. Ra8 {[%emt 0:00:00]} Re5 {[%emt 0:00:00]} 56. Rg8+ {[%emt 0:00:00]} Kf4 {[%emt 0:00:00]} 57. Rf8+ {[%emt 0:00:00]} 1/2-1/2